fUSD/lending_fUSD_20240523
["ID","MTS","AMOUNT","RATE_DAILY","PERIOD"]
[327819869,1716505849286,-150.0,0.00027395,2]
[327819870,1716505849296,-500.0,0.00027397,2]
[327819871,1716505849305,-500.0,0.00027397,2]
[327819872,1716505849315,-500.0,0.00027397,2]
[327819873,1716505849324,-500.0,0.00027397,2]
[327819874,1716505849333,-573.24236639,0.00027397,2]
[327819875,1716505849343,-246.59202,0.00027397,7]
[327819876,1716505849352,-151.0,0.00027397,7]
[327819877,1716505849361,-151.0,0.00027397,7]
[327819878,1716505849372,-151.0,0.00027397,7]
[327819879,1716505849381,-151.0,0.00027397,7]
[327819880,1716505849390,-188.65,0.00027397,10]
[327819881,1716505849399,-5135.0,0.00027431,2]
[327819882,1716505849409,-1466.0,0.00027431,2]
[327819883,1716505849418,-1061.0,0.00027431,2]
[327819884,1716505849428,-150.0,0.0002746,2]
[327819885,1716505849437,-185.16550414,0.00027524,2]
[327819886,1716505849446,-150.0,0.00027533,2]
[327819887,1716505849456,-200.0,0.0002754,15]
[327819888,1716505849465,-829.83,0.00027545,2]
[327819889,1716505849475,-435.37,0.000276,2]
[327819890,1716505849484,-714.51,0.000276,2]
[327819891,1716505849494,-150.0,0.0002766,2]
[327819892,1716505849503,-311.15915592,0.00027669,2]
[327819893,1716505849513,-150.0,0.00027694,2]
[327819894,1716505849523,-2696.53772547,0.000277,2]
[327819895,1716505849532,-150.0,0.00027746,2]
[327819896,1716505849542,-150.0,0.00027769,2]
[327819897,1716505849551,-150.0,0.00027772,2]
[327819898,1716505849561,-150.0,0.00027775,2]
[327819899,1716505849570,-150.0,0.00027789,2]
[327819900,1716505849579,-150.0,0.00027791,2]
[327819901,1716505849747,-150.0,0.00027798,2]
[327819902,1716505849757,-150.0,0.00027825,2]
[327819903,1716505849767,-150.0,0.00027834,2]
[327819904,1716505849776,-150.0,0.00027905,2]
[327819905,1716505849786,-150.0,0.00027915,2]
[327819906,1716505849796,-150.0,0.00027918,2]
[327819907,1716505849806,-3425.43,0.00027945,2]
[327819908,1716505849815,-150.0,0.00027947,2]
[327819909,1716505849824,-7854.69380717,0.00028,2]
[327819910,1716505849833,-1000.0,0.00028,2]
[327819911,1716505849843,-150.0,0.00028014,2]
[327819912,1716505849852,-150.0,0.00028017,2]
[327819913,1716505849861,-230.06021959,0.00028116,2]
[327819914,1716505849872,-6109.61481206,0.00028151,2]
[327819915,1716505849882,-150.0,0.00028171,2]
[327819916,1716505849891,-186.71608804,0.00028214,2]
[327819917,1716505849900,-2026.87283359,0.00028214,2]
[327819918,1716505849909,-193.19960708,0.00028214,2]
[327819919,1716505849918,-335.70340992,0.00028214,2]
[327819920,1716505849927,-158.570207,0.00028231,7]
[327819921,1716505849936,-251.281042,0.00028231,7]
[327819922,1716505849946,-151.0,0.00028231,7]
[327819923,1716505849955,-151.0,0.00028231,7]
[327819924,1716505849964,-500.0,0.00028231,6]
[327819925,1716505849973,-500.0,0.00028231,6]
[327819926,1716505849982,-500.0,0.00028231,6]
[327819927,1716505849991,-500.0,0.00028231,6]
[327819928,1716505850001,-500.0,0.00028231,6]
[327819929,1716505850010,-500.0,0.00028231,6]
[327819930,1716505850019,-500.0,0.00028231,6]
[327819931,1716505850028,-500.0,0.00028231,6]
[327819932,1716505850038,-500.0,0.00028231,6]
[327819933,1716505850047,-500.0,0.00028231,6]
[327819934,1716505850056,-500.0,0.00028231,6]
[327819935,1716505850065,-500.0,0.00028231,6]
[327819936,1716505850074,-500.0,0.00028231,6]
[327819937,1716505850083,-500.0,0.00028231,6]
[327819938,1716505850092,-500.0,0.00028231,6]
[327819939,1716505850101,-500.0,0.00028231,6]
[327819940,1716505850110,-500.0,0.00028231,6]
[327819941,1716505850120,-500.0,0.00028231,6]
[327819942,1716505850129,-500.0,0.00028231,6]
[327819943,1716505850138,-500.0,0.00028231,6]
[327819944,1716505850148,-500.0,0.00028231,6]
[327819945,1716505850157,-500.0,0.00028231,6]
[327819946,1716505850166,-500.0,0.00028231,6]
[327819947,1716505850175,-500.0,0.00028231,6]
[327819948,1716505850185,-500.0,0.00028231,6]
[327819949,1716505850195,-500.0,0.00028231,6]
[327819950,1716505850205,-500.0,0.00028231,6]
[327819951,1716505850214,-500.0,0.00028231,6]
[327819952,1716505850223,-500.0,0.00028231,6]
[327819953,1716505850232,-500.0,0.00028231,6]
[327819954,1716505850241,-500.0,0.00028231,6]
[327819955,1716505850250,-500.0,0.00028231,6]
[327819956,1716505850260,-500.0,0.00028231,6]
[327819957,1716505850269,-500.0,0.00028231,6]
[327819958,1716505850278,-500.0,0.00028231,6]
[327819959,1716505850288,-500.0,0.00028231,6]
[327819960,1716505850296,-500.0,0.00028231,6]
[327819961,1716505850305,-150.0,0.00028233,2]
[327819962,1716505850316,-150.0,0.00028237,2]
[327819963,1716505850325,-150.0,0.00028278,2]
[327819964,1716505850335,-150.0,0.00028291,2]
[327819965,1716505850344,-150.0,0.00028307,2]
[327819966,1716505850354,-150.0,0.00028311,2]
[327819967,1716505850363,-227496.13706398,0.00028314,15]
[327819968,1716505850372,-476028.27499868,0.00028314,4]
[327819969,1716505850382,-190.397778,0.00028314,7]
[327819970,1716505850391,-236.35555,0.00028314,7]
[327819971,1716505850400,-151.0,0.00028314,7]
[327819972,1716505850411,-151.0,0.00028314,7]
[327819973,1716505850420,-151.0,0.00028314,7]
[327819974,1716505850429,-228.995662,0.00028314,7]
[327819975,1716505850438,-151.0,0.00028314,7]
[327819976,1716505850448,-151.0,0.00028314,7]
[327819977,1716505850457,-151.0,0.00028314,7]
[327819978,1716505850466,-151.0,0.00028314,7]
[327819979,1716505850476,-151.0,0.00028314,7]
[327819980,1716505850485,-151.0,0.00028314,7]
[327819981,1716505850494,-155.912303,0.00028314,7]
[327819982,1716505850503,-155.912303,0.00028314,7]
[327819983,1716505850512,-155.560454,0.00028314,7]
[327819984,1716505850521,-296.399211,0.00028314,7]
[327819985,1716505850530,-296.399211,0.00028314,7]
[327819986,1716505850540,-151.0,0.00028314,7]
[327819987,1716505850550,-151.0,0.00028314,7]
[327819988,1716505850559,-151.0,0.00028314,7]
[327819989,1716505850568,-151.0,0.00028314,7]
[327819990,1716505850577,-151.0,0.00028314,7]
[327819991,1716505850586,-151.0,0.00028314,7]
[327819992,1716505850595,-151.0,0.00028314,7]
[327819993,1716505850604,-151.0,0.00028314,7]
[327819994,1716505850613,-151.0,0.00028314,7]
[327819995,1716505850623,-280.296464,0.00028314,7]
[327819996,1716505850632,-154.525192,0.00028314,7]
[327819997,1716505850641,-151.0,0.00028314,7]
[327819998,1716505850650,-151.0,0.00028314,7]
[327819999,1716505850659,-151.0,0.00028314,7]
[327820000,1716505850672,-151.0,0.00028314,7]
[327820001,1716505850681,-151.0,0.00028314,7]
[327820002,1716505850691,-151.0,0.00028314,7]
[327820003,1716505850699,-151.0,0.00028314,7]
[327820004,1716505850711,-151.0,0.00028314,7]
[327820005,1716505850720,-151.0,0.00028314,7]
[327820006,1716505850729,-151.0,0.00028314,7]
[327820007,1716505850738,-151.0,0.00028314,7]
[327820008,1716505850748,-151.0,0.00028314,7]
[327820009,1716505850758,-151.0,0.00028314,7]
[327820010,1716505850767,-237.484536,0.00028314,7]
[327820011,1716505850776,-151.0,0.00028314,7]
[327820012,1716505850785,-151.0,0.00028314,7]
[327820013,1716505850794,-685.25715,0.00028314,7]
[327820014,1716505850803,-685.25715,0.00028314,7]
[327820015,1716505850813,-1000.0,0.00028333,2]
[327820016,1716505850822,-150.0,0.00028377,2]
[327820017,1716505850831,-5193.47301085,0.00028426,2]
[327820018,1716505850840,-150.0,0.00028435,2]
[327820019,1716505850849,-151.0,0.0002847,7]
[327820020,1716505850858,-151.0,0.0002847,7]
[327820021,1716505850869,-151.0,0.0002847,7]
[327820022,1716505850878,-151.0,0.0002847,7]
[327820023,1716505850887,-221.960932,0.0002847,7]
[327820024,1716505850896,-151.0,0.0002847,7]
[327820025,1716505850905,-151.0,0.0002847,7]
[327820026,1716505850914,-155.912303,0.0002847,7]
[327820027,1716505850923,-155.912303,0.0002847,7]
[327820028,1716505850932,-150.0,0.00028489,2]
[327820029,1716505850941,-150.0,0.00028489,2]
[327820030,1716505850950,-870.2,0.00028495,2]
[327820031,1716505850959,-150.0,0.00028499,2]
[327820032,1716505850968,-996.36,0.000285,2]
[327820033,1716505850977,-1000.0,0.000285,2]
[327820034,1716505850986,-269.437875,0.000285,2]
[327820035,1716505850995,-150.0,0.00028506,2]
[327820036,1716505851005,-204.19985296,0.00028523,2]
[327820037,1716505851014,-150.0,0.00028525,2]
[327820038,1716505851024,-150.0,0.00028533,2]
[327820039,1716505851033,-150.0,0.00028533,2]
[327820040,1716505851042,-1225.0,0.00028533,2]
[327820041,1716505851051,-317.983,0.00028533,2]
[327820042,1716505851060,-150.0,0.00028534,2]
[327820043,1716505851069,-150.0,0.00028556,2]
[327820044,1716505851078,-150.0,0.00028607,2]
[327820045,1716505851087,-150.0,0.00028609,2]
[327820046,1716505851096,-150.0,0.00028616,2]
[327820047,1716505851105,-371.65,0.00028627,2]
[327820048,1716505851114,-150.0,0.0002863,2]
[327820049,1716505851124,-150.0,0.0002863,2]
[327820050,1716505851133,-150.0,0.0002863,2]
[327820051,1716505851143,-702.76,0.0002863,2]
[327820052,1716505851152,-151.05,0.0002863,2]
[327820053,1716505851161,-300.0,0.0002863,2]
[327820054,1716505851170,-326.33,0.0002863,2]
[327820055,1716505851179,-150.0,0.0002863,2]
[327820056,1716505851188,-150.0,0.0002863,2]
[327820057,1716505851198,-524.14,0.0002863,2]
[327820058,1716505851208,-746.5,0.0002863,2]
[327820059,1716505851217,-150.0,0.0002863,2]
[327820060,1716505851226,-150.0,0.0002863,2]
[327820061,1716505851237,-150.0,0.0002863,2]
[327820062,1716505851246,-150.0,0.0002863,2]
[327820063,1716505851255,-150.0,0.0002863,2]
[327820064,1716505851264,-150.0,0.00028637,2]
[327820065,1716505851274,-150.0,0.0002866,2]
[327820066,1716505851283,-150.0,0.000287,2]
[327820067,1716505851292,-150.0,0.0002872,2]
[327820068,1716505851301,-150.0,0.00028723,2]
[327820069,1716505851310,-401.52663987,0.00028731,2]
[327820070,1716505851320,-150.0,0.00028735,2]
[327820071,1716505851329,-435.37,0.000288,2]
[327820072,1716505851338,-714.51,0.000288,2]
[327820073,1716505851348,-150.0,0.00028833,2]
[327820074,1716505851357,-150.0,0.00028849,2]
[327820075,1716505851367,-747.0,0.00028879,5]
[327820076,1716505851376,-3100.0,0.000289,10]
[327820077,1716505851386,-150.0,0.00028921,2]
[327820078,1716505851395,-150.0,0.00028924,2]
[327820079,1716505851406,-150.0,0.00028965,2]
[327820080,1716505851415,-150.0,0.00028974,2]
[327820081,1716505851425,-150.0,0.00028992,2]
[327820082,1716505851435,-150.0,0.00028999,2]
[327820083,1716505851443,-1482.6862475,0.00029,2]
[327820084,1716505851452,-5000.0,0.00029,2]
[327820085,1716505851462,-139545.04866092,0.00029,2]
[327820086,1716505851478,-5302.32170848,0.00029,2]
[327820087,1716505851490,-6018.26415011,0.00029,2]
[327820088,1716505851501,-27346.33991474,0.00029,2]
[327820089,1716505851527,-147416.64028091,0.00029,2]
[327820090,1716505851539,-6544.17668736,0.00029,2]
[327820091,1716505851564,-6003.38655378,0.00029,2]
[327820092,1716505851666,-500.0,0.00021917,2]
[327820093,1716505851678,-500.0,0.00021917,2]
[327820094,1716505851687,-100.8999995,0.00021917,2]
[327820095,1716505851698,-399.1000005,0.00021917,2]
[327820096,1716505851709,-685.25715,0.00024,7]
[327820097,1716505851718,-654.6998495,0.00025,7]
[327820098,1716505851749,-30.5573005,0.00025,7]
[327820099,1716505851760,-685.25715,0.00028314,7]
[327820100,1716505851770,-486.14290938,0.00028314,7]
[327820101,1716506002737,794.24045,0.00030695,120]
[327820102,1716506300919,156.37,0.00013973,2]
[327820107,1716506802049,152.02,0.00013973,2]
[327820122,1716507032877,-662.28,0.00019651,2]
[327820123,1716507032887,-585.55052125,0.00021,2]
[327820124,1716507032901,-464.44947875,0.00021,2]
[327820125,1716507032910,-4654.55052125,0.00021,4]
[327820127,1716507032921,-3814.24546861,0.00021,4]
[327820129,1716507032932,-2457.16684415,0.00021,4]
[327820132,1716507032946,-3443.86257323,0.00021,4]
[327820134,1716507035065,-1908.97930362,0.00021,4]
[327820136,1716507035077,-5362.08394214,0.00021,4]
[327820138,1716507035091,-21062.1,0.00021,4]
[327820223,1716507041512,-1009.1586284,0.00021,4]
[327820224,1716507041524,-327.9420034,0.00021,4]
[327820225,1716507041535,-5000.0,0.00021,4]
[327820226,1716507041546,-5640.52606362,0.00021,4]
[327820227,1716507041558,-3473.69212895,0.00021,4]
[327820228,1716507041567,-1153.244,0.00021498,2]
[327820229,1716507041576,-471.32417508,0.00021498,2]
[327820233,1716507042879,-500.00898235,0.00021498,2]
[327820234,1716507042898,-115.78294257,0.00021498,2]
[327820235,1716507042908,-142.22732418,0.00021633,2]
[327820236,1716507042921,-107.77267582,0.00021633,2]
[327820237,1716507042930,-250.0,0.00021661,2]
[327820238,1716507042939,-1411.56555107,0.00021722,2]
[327820247,1716507044050,-1552.16653,0.00021722,2]
[327820250,1716507044202,-20936.26791893,0.00021722,2]
[327820253,1716507044272,-169.411801,0.00021763,2]
[327820255,1716507044282,-166.712687,0.00021763,2]
[327820256,1716507044292,-155.639009,0.00021763,2]
[327820258,1716507044301,-1860.534263,0.00021763,2]
[327820260,1716507044310,-3045.579828,0.00021763,2]
[327820262,1716507044320,-1367.992965,0.00021763,2]
[327820264,1716507044329,-662.28,0.00021915,2]
[327820266,1716507044339,-500.0,0.00021917,2]
[327820267,1716507044349,-500.0,0.00021917,2]
[327820269,1716507044358,-500.0,0.00021917,2]
[327820271,1716507044367,-515.97,0.00021917,2]
[327820273,1716507044375,-500.0,0.00021917,2]
[327820274,1716507044384,-554.04,0.00021917,2]
[327820275,1716507044393,-500.0,0.00021917,2]
[327820276,1716507044402,-519.07,0.00021917,2]
[327820277,1716507044411,-500.0,0.00021917,2]
[327820278,1716507044421,-500.0,0.00021917,2]
[327820279,1716507044430,-500.0,0.00021917,2]
[327820280,1716507044439,-633.44,0.00021917,2]
[327820281,1716507044448,-500.0,0.00021917,2]
[327820282,1716507044456,-500.0,0.00021917,2]
[327820283,1716507044465,-500.0,0.00021917,2]
[327820284,1716507044474,-500.0,0.00021917,2]
[327820285,1716507044483,-500.0,0.00021917,2]
[327820286,1716507044493,-500.0,0.00021917,2]
[327820287,1716507044502,-500.0,0.00021917,2]
[327820288,1716507044511,-500.0,0.00021917,2]
[327820289,1716507044521,-500.0,0.00021917,2]
[327820290,1716507044530,-500.0,0.00021917,2]
[327820291,1716507044539,-500.0,0.00021917,2]
[327820292,1716507044548,-500.0,0.00021917,2]
[327820293,1716507044558,-500.0,0.00021917,2]
[327820294,1716507044567,-500.0,0.00021917,2]
[327820295,1716507044576,-500.0,0.00021917,2]
[327820296,1716507044588,-514.59224612,0.00021917,2]
[327820297,1716507044597,-500.0,0.00021917,2]
[327820298,1716507044606,-500.0,0.00021917,2]
[327820299,1716507044615,-639.12,0.00021917,2]
[327820300,1716507044625,-500.0,0.00021917,2]
[327820301,1716507044634,-500.0,0.00021917,2]
[327820302,1716507044643,-500.0,0.00021917,2]
[327820303,1716507044652,-500.0,0.00021917,2]
[327820304,1716507044661,-500.0,0.00021917,2]
[327820305,1716507044671,-500.0,0.00021917,2]
[327820306,1716507044680,-500.0,0.00021917,2]
[327820307,1716507044689,-500.0,0.00021917,2]
[327820308,1716507044699,-500.0,0.00021917,2]
[327820309,1716507044708,-500.0,0.00021917,2]
[327820310,1716507044717,-500.0,0.00021917,2]
[327820311,1716507044726,-500.0,0.00021917,2]
[327820312,1716507044735,-513.78475914,0.00021917,2]
[327820313,1716507044744,-500.0,0.00021917,2]
[327820314,1716507044753,-500.0,0.00021917,2]
[327820315,1716507044762,-500.0,0.00021917,2]
[327820316,1716507044771,-55.01808904,0.00021917,2]
[327820317,1716507044783,-444.98191096,0.00021917,2]
[327820318,1716507044792,-500.0,0.00021917,2]
[327820319,1716507044801,-500.0,0.00021917,2]
[327820320,1716507044810,-500.0,0.00021917,2]
[327820321,1716507044819,-500.0,0.00021917,2]
[327820322,1716507044827,-500.0,0.00021917,2]
[327820323,1716507044838,-532.05,0.00021917,2]
[327820324,1716507044847,-500.0,0.00021917,2]
[327820325,1716507044855,-500.0,0.00021917,2]
[327820326,1716507044864,-500.0,0.00021917,2]
[327820327,1716507044873,-644.66,0.00021917,2]
[327820328,1716507044882,-500.0,0.00021917,2]
[327820329,1716507044891,-494.6168119,0.00021917,2]
[327820330,1716507044900,-500.0,0.00021917,2]
[327820331,1716507044909,-500.0,0.00021917,2]
[327820332,1716507044918,-500.0,0.00021917,2]
[327820333,1716507044926,-500.0,0.00021917,2]
[327820334,1716507044935,-500.0,0.00021917,2]
[327820335,1716507044944,-500.0,0.00021917,2]
[327820336,1716507044953,-500.0,0.00021917,2]
[327820337,1716507044962,-500.0,0.00021917,2]
[327820338,1716507044971,-500.0,0.00021917,2]
[327820339,1716507044980,-500.0,0.00021917,2]
[327820340,1716507044989,-500.0,0.00021917,2]
[327820341,1716507044998,-500.0,0.00021917,2]
[327820342,1716507045006,-500.0,0.00021917,2]
[327820343,1716507045015,-500.0,0.00021917,2]
[327820344,1716507045024,-500.0,0.00021917,2]
[327820345,1716507045033,-500.0,0.00021917,2]
[327820346,1716507045042,-500.0,0.00021917,2]
[327820347,1716507045054,-500.0,0.00021917,2]
[327820348,1716507045064,-500.0,0.00021917,2]
[327820349,1716507045073,-500.0,0.00021917,2]
[327820350,1716507045081,-500.0,0.00021917,2]
[327820351,1716507045092,-500.0,0.00021917,2]
[327820352,1716507045101,-514.99034738,0.00021917,2]
[327820353,1716507045110,-500.0,0.00021917,2]
[327820354,1716507045119,-500.0,0.00021917,2]
[327820355,1716507045131,-500.0,0.00021917,2]
[327820356,1716507045140,-500.0,0.00021917,2]
[327820357,1716507045149,-500.0,0.00021917,2]
[327820358,1716507045158,-289.00260313,0.00021917,2]
[327820359,1716507045167,-500.0,0.00021917,2]
[327820360,1716507045177,-500.0,0.00021917,2]
[327820361,1716507045186,-500.0,0.00021917,2]
[327820362,1716507045195,-500.0,0.00021917,2]
[327820363,1716507045204,-500.0,0.00021917,2]
[327820364,1716507045213,-500.0,0.00021917,2]
[327820365,1716507045223,-500.0,0.00021917,2]
[327820366,1716507045232,-513.10409558,0.00021917,2]
[327820367,1716507045241,-500.0,0.00021917,2]
[327820368,1716507045251,-500.0,0.00021917,2]
[327820370,1716507045260,-500.0,0.00021917,2]
[327820372,1716507045269,-500.0,0.00021917,2]
[327820373,1716507045278,-250.0,0.00021918,2]
[327820374,1716507045287,-155.23,0.00021918,2]
[327820375,1716507045296,-172.0,0.00022,2]
[327820376,1716507045305,-1860.534263,0.00022035,2]
[327820378,1716507045316,-3045.579828,0.00022035,2]
[327820379,1716507045326,-1367.992965,0.00022035,2]
[327820380,1716507045337,-1315.25717505,0.000221,2]
[327820381,1716507045350,-868.74282495,0.000221,2]
[327820382,1716507045359,-169.411801,0.00022126,2]
[327820383,1716507045368,-227.17312563,0.00022126,2]
[327820384,1716507045392,-1801.36677584,0.00022126,2]
[327820385,1716507045405,-471.46009853,0.00022126,2]
[327820386,1716507045415,-500.0,0.00022191,2]
[327820387,1716507045424,-500.0,0.00022191,2]
[327820388,1716507045434,-500.0,0.00022191,2]
[327820389,1716507045444,-500.0,0.00022191,2]
[327820390,1716507045453,-324.02,0.00022191,2]
[327820391,1716507045463,-500.0,0.00022191,2]
[327820392,1716507045472,-511.75429128,0.00022191,2]
[327820393,1716507045482,-500.0,0.00022191,2]
[327820394,1716507045491,-158.19,0.00022191,2]
[327820395,1716507045501,-500.0,0.00022191,2]
[327820396,1716507045510,-500.0,0.00022191,2]
[327820397,1716507045520,-186.62398293,0.00022191,2]
[327820398,1716507045531,-313.37601707,0.00022191,2]
[327820399,1716507045540,-500.0,0.00022191,2]
[327820400,1716507045550,-285.36217955,0.00022191,2]
[327820401,1716507045573,-214.63782045,0.00022191,2]
[327820402,1716507045583,-500.0,0.00022191,2]
[327820403,1716507045594,-154.79,0.00022191,2]
[327820404,1716507045604,-500.0,0.00022191,2]
[327820405,1716507045614,-1808.22,0.00022226,2]
[327820406,1716507045623,-155.639009,0.00022307,2]
[327820407,1716507045633,-1860.534263,0.00022307,2]
[327820408,1716507045642,-3045.579828,0.00022307,2]
[327820409,1716507045651,-1367.992965,0.00022307,2]
[327820410,1716507045661,-405.86,0.00022465,2]
[327820411,1716507045670,-500.0,0.00022465,2]
[327820412,1716507045679,-169.411801,0.00022488,2]
[327820413,1716507045688,-1860.534263,0.00022579,2]
[327820414,1716507045698,-3045.579828,0.00022579,2]
[327820415,1716507045707,-1367.992965,0.00022579,2]
[327820416,1716507045715,-190.78,0.00022847,2]
[327820417,1716507045725,-166.712687,0.00022851,2]
[327820418,1716507045735,-169.411801,0.00022851,2]
[327820419,1716507045744,-155.639009,0.00022851,2]
[327820420,1716507045754,-1860.534263,0.00022851,2]
[327820421,1716507045763,-3045.579828,0.00022851,2]
[327820422,1716507045773,-1367.992965,0.00022851,2]
[327820424,1716507045782,-4636.89506934,0.00022898,2]
[327820425,1716507045792,-1100.0,0.00023,2]
[327820426,1716507045801,-500.0,0.00023012,2]
[327820427,1716507045810,-4636.89506926,0.00023326,2]
[327820428,1716507045821,-7500.0,0.00023648,2]
[327820429,1716507045833,-150.57248996,0.00023648,2]
[327820430,1716507045844,-500.0,0.00023746,2]
[327820431,1716507045854,-500.0,0.00023746,2]
[327820432,1716507045863,-500.0,0.00023746,2]
[327820433,1716507045872,-500.0,0.00023746,2]
[327820434,1716507045881,-500.0,0.00023746,2]
[327820435,1716507045891,-500.0,0.00023746,2]
[327820436,1716507045901,-500.0,0.00023746,2]
[327820437,1716507045911,-500.0,0.00023746,2]
[327820438,1716507045922,-500.0,0.00023746,2]
[327820439,1716507045932,-500.0,0.00023746,2]
[327820440,1716507045941,-577.1,0.00023746,2]
[327820441,1716507045951,-500.0,0.00023746,2]
[327820442,1716507045961,-500.0,0.00023746,2]
[327820443,1716507045971,-500.0,0.00023746,2]
[327820444,1716507045982,-500.0,0.00023746,2]
[327820445,1716507045991,-507.72,0.00023746,2]
[327820446,1716507046002,-500.0,0.00023746,2]
[327820447,1716507046012,-601.69,0.00023746,2]
[327820448,1716507046021,-500.0,0.00023746,2]
[327820449,1716507046031,-500.0,0.00023746,2]
[327820450,1716507046041,-500.0,0.00023746,2]
[327820451,1716507046054,-535.9,0.00023746,2]
[327820452,1716507046067,-500.0,0.00023746,2]
[327820453,1716507046076,-500.0,0.00023746,2]
[327820454,1716507046087,-500.0,0.00023746,2]
[327820455,1716507046097,-500.0,0.00023746,2]
[327820456,1716507046106,-500.0,0.00023746,2]
[327820457,1716507046115,-500.0,0.00023746,2]
[327820458,1716507046135,-171.50238669,0.00023746,2]
[327820459,1716507046151,-328.49761331,0.00023746,2]
[327820460,1716507046161,-508.57092027,0.00023746,2]
[327820461,1716507046171,-500.0,0.00023746,2]
[327820462,1716507046181,-500.0,0.00023746,2]
[327820463,1716507046191,-500.0,0.00023746,2]
[327820464,1716507046201,-500.0,0.00023746,2]
[327820465,1716507046210,-500.0,0.00023746,2]
[327820466,1716507046220,-500.0,0.00023746,2]
[327820467,1716507046230,-500.0,0.00023746,2]
[327820468,1716507046239,-648.71,0.00023746,2]
[327820469,1716507046249,-500.0,0.00023746,2]
[327820470,1716507046259,-500.0,0.00023746,2]
[327820471,1716507046270,-500.0,0.00023746,2]
[327820472,1716507046279,-500.0,0.00023746,2]
[327820473,1716507046290,-500.0,0.00023746,2]
[327820474,1716507046300,-500.0,0.00023746,2]
[327820475,1716507046311,-500.0,0.00023746,2]
[327820476,1716507046321,-502.02148258,0.00023746,2]
[327820477,1716507046330,-622.94,0.00023746,2]
[327820478,1716507046341,-500.0,0.00023746,2]
[327820479,1716507046351,-500.0,0.00023746,2]
[327820480,1716507046360,-250.24998662,0.00023746,2]
[327820481,1716507046370,-500.0,0.00023746,2]
[327820482,1716507046381,-500.0,0.00023746,2]
[327820483,1716507046390,-500.0,0.00023746,2]
[327820484,1716507046400,-500.0,0.00023746,2]
[327820485,1716507046410,-500.0,0.00023746,2]
[327820486,1716507046420,-500.0,0.00023747,2]
[327820487,1716507046429,-500.0,0.00023747,2]
[327820488,1716507046438,-500.0,0.00023747,2]
[327820489,1716507046447,-500.0,0.00023747,2]
[327820490,1716507046456,-500.0,0.00023747,2]
[327820491,1716507046466,-500.0,0.00023747,2]
[327820492,1716507046475,-500.0,0.00023747,2]
[327820493,1716507046484,-500.0,0.00023747,2]
[327820494,1716507046494,-500.0,0.00023747,2]
[327820495,1716507046503,-500.0,0.00023747,2]
[327820496,1716507046512,-500.0,0.00023747,2]
[327820497,1716507046521,-500.0,0.00023747,2]
[327820498,1716507046530,-620.04,0.00023747,2]
[327820499,1716507046540,-500.0,0.00023747,2]
[327820500,1716507046549,-500.0,0.00023747,2]
[327820501,1716507046558,-532.7,0.00023747,2]
[327820502,1716507046567,-500.0,0.00023747,2]
[327820503,1716507046577,-500.0,0.00023747,2]
[327820504,1716507046587,-500.0,0.00023747,2]
[327820505,1716507046597,-500.0,0.00023747,2]